[Event "*** Titled Tuesday 3|2 Blitz (Late)"]
[Site "Chess.com"]
[Date "2017.01.03"]
[Round "6"]
[White "Abrito99"]
[Black "boredoldman"]
[Result "0-1"]
[WhiteElo "2354"]
[BlackElo "2522"]
[TimeControl "180+2"]
[EndTime "18:10:48 PST"]
[Termination "boredoldman won by resignation"]

1. e4 {[%clk 0:03:02]} 1... c5 {[%clk 0:03:01.1]} 2. Nf3 {[%clk 0:03:01.1]} 2...
d6 {[%clk 0:03:02.6]} 3. Bb5+ {[%clk 0:02:59.6]} 3... Bd7 {[%clk 0:03:03.6]} 4.
Bxd7+ {[%clk 0:03:00.6]} 4... Qxd7 {[%clk 0:03:05.5]} 5. O-O {[%clk 0:03:01.8]}
5... Nf6 {[%clk 0:03:07.2]} 6. Re1 {[%clk 0:03:03.4]} 6... Nc6 {[%clk
0:03:08.3]} 7. c3 {[%clk 0:03:05]} 7... e6 {[%clk 0:03:09.4]} 8. d4 {[%clk
0:03:06.7]} 8... cxd4 {[%clk 0:03:10.8]} 9. cxd4 {[%clk 0:03:08.6]} 9... d5
{[%clk 0:03:12.4]} 10. e5 {[%clk 0:03:10.3]} 10... Ne4 {[%clk 0:03:14]} 11. a3
{[%clk 0:03:11.5]} 11... Be7 {[%clk 0:03:11.4]} 12. Nbd2 {[%clk 0:03:12.8]}
12... Nxd2 {[%clk 0:03:09.6]} 13. Bxd2 {[%clk 0:03:14.7]} 13... O-O {[%clk
0:03:10]} 14. Rc1 {[%clk 0:03:15.5]} 14... Rac8 {[%clk 0:03:10.3]} 15. Rc3
{[%clk 0:03:17]} 15... b5 {[%clk 0:03:00.3]} 16. Rd3 {[%clk 0:02:44.4]} 16... b4
{[%clk 0:02:51.4]} 17. a4 {[%clk 0:02:45]} 17... a5 {[%clk 0:02:50]} 18. h4
{[%clk 0:02:31.8]} 18... h6 {[%clk 0:02:48.7]} 19. h5 {[%clk 0:02:30.9]} 19...
Bd8 {[%clk 0:02:47.8]} 20. Nh2 {[%clk 0:01:56.7]} 20... Ne7 {[%clk 0:02:43.3]}
21. g4 {[%clk 0:01:29.5]} 21... Bb6 {[%clk 0:02:41.8]} 22. b3 {[%clk 0:01:27.2]}
22... Qa7 {[%clk 0:02:38.7]} 23. Nf3 {[%clk 0:01:22.9]} 23... Qa6 {[%clk
0:02:34.7]} 24. Qb1 {[%clk 0:01:23.2]} 24... Rc6 {[%clk 0:02:34.2]} 25. Kh2
{[%clk 0:01:11]} 25... Rfc8 {[%clk 0:02:25.3]} 26. Rg1 {[%clk 0:01:09.8]} 26...
Rc2 {[%clk 0:02:19.5]} 27. Ne1 {[%clk 0:01:10.7]} 27... Qxd3 {[%clk 0:02:18.3]}
28. Nxd3 {[%clk 0:01:09.6]} 28... Rxd2 {[%clk 0:02:19.7]} 29. Rd1 {[%clk
0:00:59.8]} 29... Re2 {[%clk 0:02:16.2]} 30. Rc1 {[%clk 0:00:56.7]} 30... Rc3
{[%clk 0:02:16]} 31. Re1 {[%clk 0:00:36.4]} 31... Rd2 {[%clk 0:02:01.3]} 32. Rd1
{[%clk 0:00:18.4]} 32... Rcxd3 {[%clk 0:02:01.9]} 33. Rxd2 {[%clk 0:00:16.8]}
33... Rxd2 {[%clk 0:02:03.8]} 34. Qc1 {[%clk 0:00:18.7]} 34... Rxf2+ {[%clk
0:02:03.1]} 35. Kg3 {[%clk 0:00:19.6]} 35... Bxd4 {[%clk 0:02:03.6]} 36. Qc7
{[%clk 0:00:18.7]} 36... g5 {[%clk 0:01:43.2]} 37. Qd8+ {[%clk 0:00:12.5]} 37...
Kg7 {[%clk 0:01:44]} 38. Qxe7 {[%clk 0:00:14.2]} 38... Rf1 {[%clk 0:01:27]} 39.
Qc7 {[%clk 0:00:12.6]} 39... Rb1 {[%clk 0:01:09.1]} 40. Qxa5 {[%clk 0:00:10.6]}
40... Rxb3+ {[%clk 0:01:09.4]} 41. Kg2 {[%clk 0:00:11.4]} 41... Bxe5 {[%clk
0:01:10.1]} 42. Qb5 {[%clk 0:00:12.4]} 42... Rg3+ {[%clk 0:01:10.6]} 43. Kf2
{[%clk 0:00:12.8]} 43... b3 {[%clk 0:01:12.2]} 44. a5 {[%clk 0:00:13.7]} 44...
b2 {[%clk 0:01:13.6]} 45. a6 {[%clk 0:00:14.3]} 45... Ra3 {[%clk 0:01:12.5]} 46.
Ke2 {[%clk 0:00:09.8]} 46... Ra1 {[%clk 0:01:12.9]} 47. a7 {[%clk 0:00:04.8]}
47... Rxa7 {[%clk 0:01:12.6]} 48. Kd3 {[%clk 0:00:05.2]} 48... Ra1 {[%clk
0:01:13.1]} 0-1

[Event "*** Titled Tuesday 3|2 Blitz (Late)"]
[Site "Chess.com"]
[Date "2017.01.03"]
[Round "6"]
[White "Alexander_Moskalenko"]
[Black "penguingm1"]
[Result "1-0"]
[WhiteElo "2694"]
[BlackElo "2677"]
[TimeControl "180+2"]
[EndTime "18:10:52 PST"]
[Termination "Alexander_Moskalenko won by resignation"]

1. d4 {[%clk 0:03:02]} 1... d5 {[%clk 0:03:00.9]} 2. Bf4 {[%clk 0:03:02.8]} 2...
Nf6 {[%clk 0:03:01.8]} 3. e3 {[%clk 0:03:04.1]} 3... e6 {[%clk 0:03:03]} 4. Nf3
{[%clk 0:03:04.1]} 4... c5 {[%clk 0:03:03.9]} 5. c3 {[%clk 0:03:04.2]} 5... Nc6
{[%clk 0:03:05.6]} 6. Nbd2 {[%clk 0:03:05.8]} 6... Bd6 {[%clk 0:03:06.7]} 7. Bg3
{[%clk 0:03:06.5]} 7... O-O {[%clk 0:03:07.3]} 8. Bb5 {[%clk 0:03:07.2]} 8...
Ne7 {[%clk 0:03:04.9]} 9. Bd3 {[%clk 0:03:07.9]} 9... b6 {[%clk 0:03:03.2]} 10.
e4 {[%clk 0:03:09.1]} 10... c4 {[%clk 0:01:22.5]} 11. Bc2 {[%clk 0:03:09.7]}
11... dxe4 {[%clk 0:01:23.6]} 12. Nxe4 {[%clk 0:03:11.1]} 12... Nxe4 {[%clk
0:01:24.3]} 13. Bxe4 {[%clk 0:03:13]} 13... Nd5 {[%clk 0:01:25.9]} 14. O-O
{[%clk 0:03:03.1]} 14... Bb7 {[%clk 0:01:25.2]} 15. Bxd6 {[%clk 0:03:04.7]}
15... Qxd6 {[%clk 0:01:27.1]} 16. Ne5 {[%clk 0:03:06.4]} 16... Rac8 {[%clk
0:01:22.3]} 17. Qe2 {[%clk 0:03:05.6]} 17... Qc7 {[%clk 0:01:22.4]} 18. f4
{[%clk 0:02:59.1]} 18... Ne7 {[%clk 0:01:08.2]} 19. Bc2 {[%clk 0:02:49.4]} 19...
b5 {[%clk 0:01:03.3]} 20. a3 {[%clk 0:02:47.7]} 20... Rfe8 {[%clk 0:01:01.1]}
21. Bxh7+ {[%clk 0:02:44.8]} 21... Kxh7 {[%clk 0:00:50]} 22. Qh5+ {[%clk
0:02:45.6]} 22... Kg8 {[%clk 0:00:51.3]} 23. Qxf7+ {[%clk 0:02:47.5]} 23... Kh7
{[%clk 0:00:52.5]} 24. Qh5+ {[%clk 0:02:22.7]} 24... Kg8 {[%clk 0:00:53.4]} 25.
Qf7+ {[%clk 0:02:24.3]} 25... Kh7 {[%clk 0:00:54.5]} 26. Rae1 {[%clk 0:02:22.5]}
26... Nf5 {[%clk 0:00:33.7]} 27. Qh5+ {[%clk 0:02:13.5]} 27... Kg8 {[%clk
0:00:34.4]} 28. g4 {[%clk 0:02:14.8]} 28... Nh6 {[%clk 0:00:31.3]} 29. Re3
{[%clk 0:02:13.4]} 29... Rf8 {[%clk 0:00:18.6]} 30. Rh3 {[%clk 0:01:44.2]} 30...
Rcd8 {[%clk 0:00:09.1]} 31. g5 {[%clk 0:01:44.9]} 31... Rf5 {[%clk 0:00:10.5]}
32. Qg6 {[%clk 0:01:44.5]} 32... Nf7 {[%clk 0:00:11.7]} 33. Qh7+ {[%clk
0:00:55.6]} 33... Kf8 {[%clk 0:00:12.9]} 34. Ng6+ {[%clk 0:00:57.3]} 34... Ke8
{[%clk 0:00:14.5]} 35. Qxg7 {[%clk 0:00:58.9]} 35... Qc6 {[%clk 0:00:08.6]} 36.
Rff3 {[%clk 0:00:47.2]} 36... Qd6 {[%clk 0:00:07.4]} 37. Rf2 {[%clk 0:00:42.2]}
37... Bc6 {[%clk 0:00:07.4]} 38. Rh7 {[%clk 0:00:30.4]} 38... Qd5 {[%clk
0:00:07]} 39. Qf8+ {[%clk 0:00:25.5]} 39... Kd7 {[%clk 0:00:08.4]} 40. Rxf7+
{[%clk 0:00:27.4]} 40... Kc8 {[%clk 0:00:04.4]} 41. Ne7+ {[%clk 0:00:27.9]}
41... Kc7 {[%clk 0:00:04.1]} 42. Nxd5+ {[%clk 0:00:29.8]} 1-0

[Event "*** Titled Tuesday 3|2 Blitz (Late)"]
[Site "Chess.com"]
[Date "2017.01.03"]
[Round "6"]
[White "FastChance"]
[Black "jk13"]
[Result "0-1"]
[WhiteElo "2486"]
[BlackElo "2533"]
[TimeControl "180+2"]
[EndTime "18:11:00 PST"]
[Termination "jk13 won by checkmate"]

1. e4 {[%clk 0:03:01.9]} 1... e5 {[%clk 0:03:00.4]} 2. Nf3 {[%clk 0:03:02.6]}
2... Nc6 {[%clk 0:03:01.8]} 3. d4 {[%clk 0:03:03.8]} 3... exd4 {[%clk
0:03:02.6]} 4. Bc4 {[%clk 0:03:05.4]} 4... Nf6 {[%clk 0:03:01.8]} 5. e5 {[%clk
0:03:06.7]} 5... d5 {[%clk 0:03:00.9]} 6. Bb5 {[%clk 0:03:07.9]} 6... Ne4 {[%clk
0:03:02.4]} 7. Nxd4 {[%clk 0:03:09.3]} 7... Bd7 {[%clk 0:03:03.5]} 8. Bxc6
{[%clk 0:03:10.8]} 8... bxc6 {[%clk 0:03:05.1]} 9. O-O {[%clk 0:03:12.2]} 9...
Be7 {[%clk 0:03:05.3]} 10. f3 {[%clk 0:03:13]} 10... Nc5 {[%clk 0:03:06.8]} 11.
f4 {[%clk 0:03:12]} 11... Ne4 {[%clk 0:03:08]} 12. Nc3 {[%clk 0:03:12]} 12...
Nxc3 {[%clk 0:03:08.9]} 13. bxc3 {[%clk 0:03:13.9]} 13... O-O {[%clk 0:03:10.1]}
14. Be3 {[%clk 0:03:14.7]} 14... c5 {[%clk 0:03:11.6]} 15. Nb3 {[%clk
0:03:15.2]} 15... c4 {[%clk 0:03:12.1]} 16. Nd4 {[%clk 0:03:16.6]} 16... c5
{[%clk 0:03:13]} 17. Ne2 {[%clk 0:03:18]} 17... Bg4 {[%clk 0:03:12.3]} 18. Rf2
{[%clk 0:03:02.1]} 18... Qd7 {[%clk 0:03:03.9]} 19. h3 {[%clk 0:03:01.5]} 19...
Bxe2 {[%clk 0:03:04.7]} 20. Rxe2 {[%clk 0:03:01.7]} 20... Rfd8 {[%clk
0:03:03.4]} 21. Rd2 {[%clk 0:03:00.5]} 21... Bf8 {[%clk 0:02:48.9]} 22. Qf3
{[%clk 0:02:59.4]} 22... Qa4 {[%clk 0:02:42.1]} 23. Qf2 {[%clk 0:02:49]} 23...
Qa3 {[%clk 0:02:39.2]} 24. Rad1 {[%clk 0:02:42.5]} 24... d4 {[%clk 0:02:27.5]}
25. cxd4 {[%clk 0:02:39.2]} 25... cxd4 {[%clk 0:02:18.1]} 26. Rxd4 {[%clk
0:02:35.9]} 26... Rxd4 {[%clk 0:02:16.1]} 27. Bxd4 {[%clk 0:02:36.2]} 27... c3
{[%clk 0:02:07.5]} 28. Qf3 {[%clk 0:02:26]} 28... Rd8 {[%clk 0:02:05.3]} 29. Kh2
{[%clk 0:02:23.6]} 29... Rc8 {[%clk 0:01:51]} 30. Qd5 {[%clk 0:01:56.1]} 30...
Qa6 {[%clk 0:01:32.5]} 31. Rb1 {[%clk 0:01:49.7]} 31... Qh6 {[%clk 0:01:16.6]}
32. g3 {[%clk 0:01:39.5]} 32... Qg6 {[%clk 0:01:13]} 33. Qg2 {[%clk 0:01:25.7]}
33... a5 {[%clk 0:01:03.8]} 34. Qf2 {[%clk 0:01:17]} 34... Qe4 {[%clk
0:00:56.5]} 35. f5 {[%clk 0:01:08.6]} 35... Rd8 {[%clk 0:00:55.8]} 36. Bxc3
{[%clk 0:01:04.6]} 36... Rc8 {[%clk 0:00:56]} 37. Re1 {[%clk 0:01:03.9]} 37...
Qa4 {[%clk 0:00:51.8]} 38. Ba1 {[%clk 0:00:56.4]} 38... Qxa2 {[%clk 0:00:38]}
39. Qe3 {[%clk 0:00:16.7]} 39... Rxc2+ {[%clk 0:00:36.6]} 40. Kg1 {[%clk
0:00:16.7]} 40... Rg2+ {[%clk 0:00:29.5]} 41. Kf1 {[%clk 0:00:17.6]} 41... Rh2
{[%clk 0:00:31.1]} 42. Qg1 {[%clk 0:00:15.2]} 42... Bc5 {[%clk 0:00:27.9]} 43.
Rd1 {[%clk 0:00:12.2]} 43... h5 {[%clk 0:00:25.3]} 44. e6 {[%clk 0:00:04.3]}
44... Qe2# {[%clk 0:00:25.7]} 0-1

[Event "*** Titled Tuesday 3|2 Blitz (Late)"]
[Site "Chess.com"]
[Date "2017.01.03"]
[Round "6"]
[White "jcgs1030"]
[Black "AllStarShark"]
[Result "1-0"]
[WhiteElo "2320"]
[BlackElo "2218"]
[TimeControl "180+2"]
[EndTime "18:11:17 PST"]
[Termination "jcgs1030 won by checkmate"]

1. d4 {[%clk 0:03:02]} 1... d5 {[%clk 0:03:00.8]} 2. Nf3 {[%clk 0:03:02.8]} 2...
Nf6 {[%clk 0:03:01.6]} 3. c4 {[%clk 0:03:03]} 3... dxc4 {[%clk 0:03:03.5]} 4. e3
{[%clk 0:03:03.3]} 4... Bg4 {[%clk 0:03:04.4]} 5. Bxc4 {[%clk 0:03:03.5]} 5...
e6 {[%clk 0:03:05.1]} 6. O-O {[%clk 0:03:02.4]} 6... Bd6 {[%clk 0:03:04.8]} 7.
Qb3 {[%clk 0:03:02.8]} 7... Bxf3 {[%clk 0:03:03.4]} 8. gxf3 {[%clk 0:03:04.7]}
8... Nbd7 {[%clk 0:03:02.3]} 9. Qxb7 {[%clk 0:03:03.8]} 9... O-O {[%clk
0:02:54]} 10. f4 {[%clk 0:02:56.9]} 10... Nb6 {[%clk 0:02:44.4]} 11. Be2 {[%clk
0:02:53.1]} 11... Nfd5 {[%clk 0:02:44.4]} 12. Nc3 {[%clk 0:02:46.8]} 12... Qd7
{[%clk 0:02:33.1]} 13. Nxd5 {[%clk 0:02:43.5]} 13... exd5 {[%clk 0:02:32.9]} 14.
Bd2 {[%clk 0:02:37.2]} 14... a6 {[%clk 0:02:20.5]} 15. Rfc1 {[%clk 0:02:35.6]}
15... Rfb8 {[%clk 0:02:21.1]} 16. Qc6 {[%clk 0:02:36]} 16... Qh3 {[%clk
0:02:14.7]} 17. Bf1 {[%clk 0:02:27.6]} 17... Qg4+ {[%clk 0:02:10.9]} 18. Bg2
{[%clk 0:02:23.1]} 18... Rd8 {[%clk 0:01:45.6]} 19. b3 {[%clk 0:02:04.9]} 19...
g5 {[%clk 0:01:39.1]} 20. fxg5 {[%clk 0:01:59.5]} 20... Qxg5 {[%clk 0:01:28.1]}
21. f4 {[%clk 0:01:33]} 21... Qg4 {[%clk 0:01:18]} 22. Rf1 {[%clk 0:01:28.5]}
22... Kh8 {[%clk 0:01:18]} 23. Rf3 {[%clk 0:01:27]} 23... Rg8 {[%clk 0:01:16.5]}
24. Rg3 {[%clk 0:01:26.9]} 24... Qe2 {[%clk 0:01:17.2]} 25. Be1 {[%clk
0:00:48.4]} 25... Rxg3 {[%clk 0:01:15.2]} 26. hxg3 {[%clk 0:00:50.3]} 26...
Qxe3+ {[%clk 0:01:07.9]} 27. Bf2 {[%clk 0:00:51.8]} 27... Qd2 {[%clk 0:01:01.8]}
28. Bxd5 {[%clk 0:00:47.6]} 28... Rg8 {[%clk 0:00:37.1]} 29. Bxf7 {[%clk
0:00:47]} 29... Rxg3+ {[%clk 0:00:35.4]} 30. Bxg3 {[%clk 0:00:45]} 30... Qxd4+
{[%clk 0:00:36.4]} 31. Kh2 {[%clk 0:00:45.3]} 31... Qxa1 {[%clk 0:00:37.1]} 32.
Qe8+ {[%clk 0:00:45.2]} 32... Kg7 {[%clk 0:00:38.2]} 33. Qg8+ {[%clk 0:00:44.5]}
33... Kf6 {[%clk 0:00:31.8]} 34. Qh8+ {[%clk 0:00:33.5]} 34... Kxf7 {[%clk
0:00:32.8]} 35. Qxa1 {[%clk 0:00:35.4]} 35... Nd5 {[%clk 0:00:32.2]} 36. Qb1
{[%clk 0:00:36.3]} 36... Nxf4 {[%clk 0:00:32]} 37. Qxh7+ {[%clk 0:00:36.4]}
37... Ke6 {[%clk 0:00:31.7]} 38. Qh6+ {[%clk 0:00:34.7]} 38... Kf5 {[%clk
0:00:31.2]} 39. Qh7+ {[%clk 0:00:32.4]} 39... Kg4 {[%clk 0:00:27.7]} 40. Bxf4
{[%clk 0:00:31.3]} 40... Kxf4 {[%clk 0:00:26.7]} 41. Kg2 {[%clk 0:00:33.2]}
41... Ke3 {[%clk 0:00:27]} 42. Qc2 {[%clk 0:00:33.6]} 42... a5 {[%clk
0:00:26.1]} 43. Qc4 {[%clk 0:00:35.1]} 43... Kd2 {[%clk 0:00:26]} 44. Qd5+
{[%clk 0:00:33.5]} 44... Kc2 {[%clk 0:00:26.1]} 45. Qxa5 {[%clk 0:00:35.4]}
45... Kb2 {[%clk 0:00:27.4]} 46. Qa4 {[%clk 0:00:34.8]} 46... Kc3 {[%clk
0:00:28.3]} 47. Kf3 {[%clk 0:00:36.3]} 47... Bb4 {[%clk 0:00:29.1]} 48. Ke2
{[%clk 0:00:37.5]} 48... c5 {[%clk 0:00:30.3]} 49. Kd1 {[%clk 0:00:38.2]} 49...
Kb2 {[%clk 0:00:31.6]} 50. Qa6 {[%clk 0:00:36.2]} 50... Ba3 {[%clk 0:00:32.4]}
51. Qe2+ {[%clk 0:00:35]} 51... Ka1 {[%clk 0:00:33.3]} 52. Kc2 {[%clk
0:00:34.7]} 52... Kxa2 {[%clk 0:00:28.9]} 53. Qa6 {[%clk 0:00:36]} 53... c4
{[%clk 0:00:29.1]} 54. bxc4 {[%clk 0:00:37.9]} 54... Ka1 {[%clk 0:00:29.2]} 55.
Qxa3# {[%clk 0:00:39.8]} 1-0

[Event "*** Titled Tuesday 3|2 Blitz (Late)"]
[Site "Chess.com"]
[Date "2017.01.03"]
[Round "6"]
[White "Mornar1951"]
[Black "aspired"]
[Result "0-1"]
[WhiteElo "2569"]
[BlackElo "2483"]
[TimeControl "180+2"]
[EndTime "18:11:45 PST"]
[Termination "aspired won by resignation"]

1. Nf3 {[%clk 0:02:27.8]} 1... Nf6 {[%clk 0:02:59.8]} 2. c4 {[%clk 0:02:29.1]}
2... c5 {[%clk 0:03:00.3]} 3. Nc3 {[%clk 0:02:30.1]} 3... Nc6 {[%clk 0:03:01.6]}
4. g3 {[%clk 0:02:31.1]} 4... g6 {[%clk 0:03:01.4]} 5. Bg2 {[%clk 0:02:32.3]}
5... Bg7 {[%clk 0:03:03]} 6. d4 {[%clk 0:02:33.9]} 6... cxd4 {[%clk 0:03:03.7]}
7. Nxd4 {[%clk 0:02:35.8]} 7... O-O {[%clk 0:03:05.3]} 8. O-O {[%clk 0:02:36.5]}
8... Qa5 {[%clk 0:03:06.3]} 9. Nb3 {[%clk 0:02:33.6]} 9... Qh5 {[%clk
0:03:06.9]} 10. e4 {[%clk 0:02:28.7]} 10... d6 {[%clk 0:03:07.7]} 11. Qxh5
{[%clk 0:02:25.8]} 11... Nxh5 {[%clk 0:03:08.5]} 12. Bd2 {[%clk 0:02:12.1]}
12... Be6 {[%clk 0:02:54.4]} 13. c5 {[%clk 0:02:04.3]} 13... Bxb3 {[%clk
0:02:49.2]} 14. axb3 {[%clk 0:02:06.2]} 14... dxc5 {[%clk 0:02:50.5]} 15. Nd5
{[%clk 0:02:05.7]} 15... Bxb2 {[%clk 0:02:47.3]} 16. Rab1 {[%clk 0:02:06.8]}
16... Bd4 {[%clk 0:02:45.3]} 17. Rfc1 {[%clk 0:01:59.6]} 17... e6 {[%clk
0:02:24.4]} 18. Nc7 {[%clk 0:02:00.2]} 18... Rac8 {[%clk 0:02:21.9]} 19. Nb5
{[%clk 0:02:00.4]} 19... Rfd8 {[%clk 0:02:15.6]} 20. Nxd4 {[%clk 0:01:55.2]}
20... Nxd4 {[%clk 0:02:17.5]} 21. Kf1 {[%clk 0:01:51.7]} 21... b6 {[%clk
0:02:09.8]} 22. b4 {[%clk 0:01:41.6]} 22... cxb4 {[%clk 0:02:09]} 23. Bxb4
{[%clk 0:01:43]} 23... e5 {[%clk 0:02:03.4]} 24. Bh3 {[%clk 0:01:40.8]} 24...
Ne6 {[%clk 0:02:02.5]} 25. Rxc8 {[%clk 0:01:33.1]} 25... Rxc8 {[%clk 0:02:02.4]}
26. Bd6 {[%clk 0:01:26.8]} 26... Nf6 {[%clk 0:01:59.7]} 27. Re1 {[%clk
0:01:03.4]} 27... Nd7 {[%clk 0:01:54.6]} 28. Ra1 {[%clk 0:00:53.3]} 28... a5
{[%clk 0:01:54]} 29. Rb1 {[%clk 0:00:50.5]} 29... Rc6 {[%clk 0:01:52.1]} 30. Be7
{[%clk 0:00:46.6]} 30... Kg7 {[%clk 0:01:45.5]} 31. Rd1 {[%clk 0:00:44.7]} 31...
Ndc5 {[%clk 0:01:37.3]} 32. Bd6 {[%clk 0:00:43.2]} 32... f6 {[%clk 0:01:27.1]}
33. f4 {[%clk 0:00:44.3]} 33... exf4 {[%clk 0:01:22.6]} 34. gxf4 {[%clk
0:00:46.2]} 34... Nxe4 {[%clk 0:01:21.8]} 35. Bb8 {[%clk 0:00:45.1]} 35... f5
{[%clk 0:01:04.4]} 36. Rd7+ {[%clk 0:00:45.8]} 36... Kh6 {[%clk 0:01:05.6]} 37.
Be5 {[%clk 0:00:35.9]} 37... a4 {[%clk 0:00:58.3]} 38. Ke1 {[%clk 0:00:21.1]}
38... Rc1+ {[%clk 0:00:55]} 39. Ke2 {[%clk 0:00:21.5]} 39... Rc2+ {[%clk
0:00:54.6]} 40. Ke3 {[%clk 0:00:20.8]} 40... Rxh2 {[%clk 0:00:53.5]} 41. Bf1
{[%clk 0:00:22]} 41... a3 {[%clk 0:00:50.2]} 42. Bc4 {[%clk 0:00:22.2]} 42...
N4c5 {[%clk 0:00:45.1]} 43. Ra7 {[%clk 0:00:17.9]} 43... Rh3+ {[%clk 0:00:26.3]}
44. Kf2 {[%clk 0:00:18.3]} 44... g5 {[%clk 0:00:24.7]} 45. Re7 {[%clk
0:00:16.4]} 45... Nxf4 {[%clk 0:00:23.6]} 46. Bg8 {[%clk 0:00:12]} 46... Ncd3+
{[%clk 0:00:20.5]} 47. Kg1 {[%clk 0:00:11.5]} 47... Nxe5 {[%clk 0:00:20.9]} 48.
Rxe5 {[%clk 0:00:10.8]} 48... Kg7 {[%clk 0:00:21.3]} 49. Bc4 {[%clk 0:00:08.1]}
49... Rc3 {[%clk 0:00:21.5]} 0-1

[Event "*** Titled Tuesday 3|2 Blitz (Late)"]
[Site "Chess.com"]
[Date "2017.01.03"]
[Round "6"]
[White "rithwik2002"]
[Black "TrickyTrapChess"]
[Result "1/2-1/2"]
[WhiteElo "1752"]
[BlackElo "2156"]
[TimeControl "180+2"]
[EndTime "18:12:01 PST"]
[Termination "Game drawn by agreement"]

1. e4 {[%clk 0:03:02]} 1... e6 {[%clk 0:03:00.1]} 2. d4 {[%clk 0:03:02]} 2... d5
{[%clk 0:02:58.8]} 3. Nc3 {[%clk 0:03:02.4]} 3... Nf6 {[%clk 0:02:58.4]} 4. e5
{[%clk 0:03:03]} 4... Nfd7 {[%clk 0:02:56.8]} 5. Nce2 {[%clk 0:03:04.5]} 5... c5
{[%clk 0:02:53.2]} 6. c3 {[%clk 0:03:05.5]} 6... Nc6 {[%clk 0:02:53.3]} 7. f4
{[%clk 0:03:04.7]} 7... Qb6 {[%clk 0:02:52.2]} 8. Nf3 {[%clk 0:03:03.8]} 8... f6
{[%clk 0:02:48.7]} 9. a3 {[%clk 0:02:42]} 9... Be7 {[%clk 0:02:46.6]} 10. h4
{[%clk 0:02:32.5]} 10... O-O {[%clk 0:02:44.6]} 11. h5 {[%clk 0:02:29.8]} 11...
cxd4 {[%clk 0:02:43.4]} 12. cxd4 {[%clk 0:02:22.5]} 12... Na5 {[%clk 0:02:42.5]}
13. b4 {[%clk 0:02:19.1]} 13... Nc4 {[%clk 0:02:39.1]} 14. h6 {[%clk 0:02:20.3]}
14... g6 {[%clk 0:02:37.9]} 15. Nc3 {[%clk 0:02:16.4]} 15... fxe5 {[%clk
0:02:35.9]} 16. Bxc4 {[%clk 0:02:12.1]} 16... dxc4 {[%clk 0:02:36.7]} 17. fxe5
{[%clk 0:02:08.4]} 17... a6 {[%clk 0:02:32.8]} 18. Be3 {[%clk 0:02:03.3]} 18...
Qc7 {[%clk 0:02:27.1]} 19. Qd2 {[%clk 0:01:59.5]} 19... b5 {[%clk 0:02:26.3]}
20. O-O {[%clk 0:01:50.8]} 20... Bb7 {[%clk 0:02:23.7]} 21. Ng5 {[%clk
0:01:48.9]} 21... Bxg5 {[%clk 0:02:19]} 22. Bxg5 {[%clk 0:01:46.8]} 22... Rxf1+
{[%clk 0:02:16.9]} 23. Rxf1 {[%clk 0:01:48.7]} 23... Rf8 {[%clk 0:02:18]} 24.
Rxf8+ {[%clk 0:01:41.4]} 24... Nxf8 {[%clk 0:02:16.4]} 25. Bh4 {[%clk
0:01:37.5]} 25... Qf7 {[%clk 0:02:15.5]} 26. Qg5 {[%clk 0:01:34.2]} 26... Qf5
{[%clk 0:02:12.6]} 27. Qe7 {[%clk 0:01:32.4]} 27... Qf7 {[%clk 0:02:12]} 28. Qc5
{[%clk 0:01:19.4]} 28... Qf4 {[%clk 0:02:10.4]} 29. Qe7 {[%clk 0:01:17.7]} 29...
Qxh6 {[%clk 0:01:59.4]} 30. Bf6 {[%clk 0:01:09.7]} 30... Qe3+ {[%clk 0:01:59.7]}
31. Kh2 {[%clk 0:01:07.4]} 31... Qf4+ {[%clk 0:01:59.3]} 32. Kh3 {[%clk
0:01:04.6]} 32... Qh6+ {[%clk 0:01:56]} 33. Kg3 {[%clk 0:01:04.5]} 33... Qe3+
{[%clk 0:01:51.6]} 34. Kh2 {[%clk 0:01:05]} 34... Qh6+ {[%clk 0:01:48.5]} 35.
Kg1 {[%clk 0:01:01.9]} 35... Qc1+ {[%clk 0:01:47.1]} 36. Kh2 {[%clk 0:00:56.7]}
36... Qf4+ {[%clk 0:01:45.4]} 37. Kh3 {[%clk 0:00:49.2]} 37... Qh6+ {[%clk
0:01:42.5]} 38. Kg3 {[%clk 0:00:48]} 38... Bc6 {[%clk 0:01:42]} 39. Ne2 {[%clk
0:00:45.3]} 39... Bd5 {[%clk 0:01:22]} 40. Nf4 {[%clk 0:00:41.3]} 40... g5
{[%clk 0:01:21.7]} 41. Bxg5 {[%clk 0:00:40.7]} 41... Qg7 {[%clk 0:01:20.5]} 42.
Qxg7+ {[%clk 0:00:39.3]} 42... Kxg7 {[%clk 0:01:17.7]} 43. Bf6+ {[%clk
0:00:41.2]} 43... Kf7 {[%clk 0:01:16.6]} 44. Kf2 {[%clk 0:00:41.4]} 44... Ng6
{[%clk 0:01:15.8]} 45. Ne2 {[%clk 0:00:39]} 45... h6 {[%clk 0:01:14.5]} 46. g3
{[%clk 0:00:33.2]} 46... Nf8 {[%clk 0:01:15.4]} 47. Nc3 {[%clk 0:00:26.7]} 47...
Nh7 {[%clk 0:01:13.3]} 48. Bd8 {[%clk 0:00:21.3]} 48... Bc6 {[%clk 0:01:11.5]}
49. Ke3 {[%clk 0:00:20.3]} 49... Kg6 {[%clk 0:01:09.1]} 50. Ne2 {[%clk 0:00:16]}
50... Kg7 {[%clk 0:01:07.5]} 51. g4 {[%clk 0:00:14.5]} 51... Kg6 {[%clk
0:00:56.3]} 52. Nf4+ {[%clk 0:00:13.9]} 52... Kf7 {[%clk 0:00:55.8]} 53. Bh4
{[%clk 0:00:14.2]} 53... Nf8 {[%clk 0:00:54]} 54. g5 {[%clk 0:00:12.5]} 54...
hxg5 {[%clk 0:00:54.3]} 55. Bxg5 {[%clk 0:00:14.4]} 55... Ng6 {[%clk 0:00:54.2]}
56. Nxg6 {[%clk 0:00:12.6]} 56... Kxg6 {[%clk 0:00:55.3]} 57. Be7 {[%clk
0:00:13.3]} 57... Kf5 {[%clk 0:00:56.2]} 58. Bf6 {[%clk 0:00:12]} 58... Bd5
{[%clk 0:00:57.8]} 59. Kd2 {[%clk 0:00:10.4]} 59... Kg4 {[%clk 0:00:59.7]} 60.
Kc3 {[%clk 0:00:08.8]} 60... Kf3 {[%clk 0:01:01.2]} 61. Bg5 {[%clk 0:00:07.6]}
61... Ke4 {[%clk 0:01:02.8]} 62. Bc1 {[%clk 0:00:08]} 62... Kf3 {[%clk
0:01:04.3]} 63. Bh6 {[%clk 0:00:08.2]} 63... Ke2 {[%clk 0:01:06.2]} 64. Bc1
{[%clk 0:00:08.5]} 64... Kd1 {[%clk 0:01:08.1]} 65. Bh6 {[%clk 0:00:08.2]} 65...
Ke1 {[%clk 0:01:09.9]} 66. Bg5 {[%clk 0:00:08.7]} 66... Ke2 {[%clk 0:01:11.8]}
67. Bc1 {[%clk 0:00:09.6]} 67... Bc6 {[%clk 0:01:13.7]} 68. Bg5 {[%clk 0:00:10]}
68... Bb7 {[%clk 0:01:15.6]} 69. Bh6 {[%clk 0:00:10.6]} 69... Bc8 {[%clk
0:01:16.8]} 70. Bg5 {[%clk 0:00:11.8]} 70... Bb7 {[%clk 0:01:18]} 71. Bh6 {[%clk
0:00:12.8]} 71... Bd5 {[%clk 0:01:19.6]} 72. Bg5 {[%clk 0:00:13.9]} 72... Kd1
{[%clk 0:01:21]} 73. Bh6 {[%clk 0:00:14.3]} 1/2-1/2